bitfinex/quotes_ETHUSD_20260304
["timestamp","ask_amount","ask_price","bid_price","bid_amount"]
[1772598243057,2.88475952,1953.9,1953.1,1.28001638]
[1772598243368,0.001,1953.9,1953.2,2.89038299]
[1772598243558,0.001,1954.3,1953.8,4.20085879]
[1772598243758,0.001,1954.3,1953.8,4.51838299]
[1772598244534,0.001,1954.3,1953.9,1.27949229]
[1772598247266,0.00210046,1955.0,1954.1,3.11797993]
[1772598248373,0.27911828,1955.2,1954.1,3.11797993]
[1772598248766,0.27911828,1955.2,1954.3,3.11797993]
[1772598249143,0.27911828,1955.2,1954.2,1.27929587]
[1772598249144,0.27911828,1955.0,1954.2,1.27929587]
[1772598249348,0.28108979,1954.8,1954.2,1.27929587]
[1772598250939,1.5600022,1954.8,1954.2,1.27929587]
[1772598251142,0.28108979,1954.8,1954.2,1.27929587]
[1772598251339,1.56001362,1954.8,1954.1,3.11797993]
[1772598251544,1.59524498,1954.7,1954.1,1.27932236]
[1772598251760,0.28476918,1954.6,1954.1,1.27932236]
[1772598252344,0.28657879,1954.9,1954.1,4.39730229]
[1772598253078,0.28657879,1954.9,1954.2,3.11797993]
[1772598254677,0.5,1954.8,1954.2,3.11797993]
[1772598255279,0.5,1954.8,1954.3,1.27923041]
[1772598257167,0.79463091,1954.8,1954.2,1.27924954]
[1772598257368,1.60510671,1954.7,1954.1,5.11730176]
[1772598257652,0.5,1954.8,1954.2,3.11797993]
[1772598258551,0.501,1954.8,1954.2,3.11797993]
[1772598258751,0.80222952,1954.8,1954.2,3.11797993]
[1772598259486,0.80222952,1954.8,1954.3,1.27923041]
[1772598260769,0.80222952,1954.8,1954.2,8.23501469]
[1772598260770,2.08113756,1954.8,1954.2,3.11797993]
[1772598261079,0.30880867,1954.7,1953.9,4.39747222]
[1772598262963,0.30880867,1954.7,1953.9,1.27949229]
[1772598263164,0.30880867,1954.7,1953.9,4.39747222]
[1772598263479,0.30880867,1954.7,1954.0,3.11797993]
[1772598264079,1.8114758,1954.8,1954.2,3.11797993]
[1772598264080,0.501,1954.8,1954.2,3.11797993]
[1772598265393,1.77991425,1954.8,1954.2,3.11797993]
[1772598265691,2.09419624,1954.8,1954.2,3.11797993]
[1772598266076,0.81528199,1954.8,1954.3,1.27923041]
[1772598266587,2.09418799,1954.8,1954.3,1.27923041]
[1772598267096,0.81528199,1954.8,1954.3,1.27923041]
[1772598267678,2.09418645,1954.8,1954.3,1.27923041]
[1772598268491,0.81528199,1954.8,1954.3,1.27923041]
[1772598270099,2.12575779,1954.8,1954.3,1.27923041]
[1772598270300,2.12575779,1954.8,1954.3,1.28033041]
[1772598270622,0.40318153,1954.8,1954.6,3.11797993]
[1772598270913,0.001,1954.8,1954.6,3.11797993]
[1772598272873,0.001,1954.8,1954.7,1.27896863]
[1772598274789,0.001,1954.8,1954.6,4.39696326]
[1772598276109,2.91577803,1955.3,1954.7,3.11747993]
[1772598276279,0.32727402,1955.2,1954.7,3.11747993]
[1772598276986,2.91632899,1955.3,1954.8,1.27890321]
[1772598277205,1.60585319,1955.3,1954.8,1.27890321]
[1772598277784,0.32727402,1955.3,1954.8,4.39588314]
[1772598284713,0.001,1955.2,1954.8,4.39588314]
[1772598285615,0.001,1955.2,1954.9,3.11697993]
[1772598286216,0.001,1955.2,1954.9,4.39575458]
[1772598287315,0.001,1955.2,1955.0,3.11697993]
[1772598288419,0.001,1955.2,1955.1,1.27870697]
[1772598289706,0.001,1955.2,1955.0,4.39570192]
[1772598289921,0.001,1955.2,1955.0,1.27872199]
[1772598290126,1.3104758,1955.7,1955.1,3.23991534]
[1772598290288,0.3352536,1955.5,1955.0,1.27872199]
[1772598290488,0.3352536,1955.5,1954.9,3.23991534]
[1772598290489,0.3352536,1955.4,1954.9,3.23991534]
[1772598291411,0.001,1955.8,1954.8,1.27890321]
[1772598291412,0.001,1955.8,1955.1,3.23991534]
[1772598291597,1.64574573,1955.7,1955.1,1.639]
[1772598291918,0.001,1955.8,1955.2,3.23991534]
[1772598292289,0.001,1956.2,1955.4,3.23991534]
[1772598292596,0.001,1956.2,1955.7,3.23991534]
[1772598294503,0.001,1956.2,1955.8,3.23991534]
[1772598294688,0.33605169,1956.2,1955.7,4.51817937]
[1772598295410,0.33605169,1956.2,1955.8,3.23991534]
[1772598295719,0.001,1956.2,1955.8,3.23991534]
[1772598296516,0.001,1956.2,1956.0,3.23991534]
[1772598297101,0.001,1956.2,1955.8,4.51811726]
[1772598297695,0.001,1956.2,1955.9,3.23991534]
[1772598298598,0.001,1956.1,1955.9,4.51809572]
[1772598298798,0.001,1956.1,1955.9,3.23991534]
[1772598301120,0.33475089,1956.1,1955.7,3.23991534]
[1772598301322,0.33475089,1956.1,1955.5,8.35365017]
[1772598301525,0.33475089,1956.1,1955.3,5.11428417]
[1772598301526,0.33343244,1956.0,1955.3,4.51845912]
[1772598301821,0.001,1956.1,1955.4,3.23991534]
[1772598302125,0.001,1956.1,1955.3,1.27854378]
[1772598302126,0.001,1956.1,1955.6,3.23991534]
[1772598303732,0.001,1956.1,1955.8,3.23991534]
[1772598305137,0.001,1956.3,1956.0,3.23991534]
[1772598305708,0.001,1956.3,1956.0,4.51800796]
[1772598307714,0.001,1956.3,1956.1,3.23991534]
[1772598308435,0.001,1956.3,1956.1,4.5179533]
[1772598309842,0.001,1956.3,1956.1,4.51796329]
[1772598310347,0.001,1956.3,1955.9,6.15906557]
[1772598310508,0.33139637,1956.3,1955.7,4.51819454]
[1772598310913,0.33039637,1956.1,1955.5,4.88291534]
[1772598311138,0.33039637,1956.1,1955.5,6.1613552]
[1772598311912,0.33039637,1956.1,1955.7,0.0011]
[1772598312834,1.77902835,1956.2,1955.7,3.24101534]
[1772598312835,0.501,1956.2,1955.7,3.24101534]
[1772598314727,0.32797827,1956.1,1955.7,0.0011]
[1772598317017,1.60605894,1956.1,1955.7,0.0011]
[1772598319017,0.32797827,1956.1,1955.7,0.0011]
[1772598319218,1.60603538,1956.1,1955.7,0.0011]
[1772598320728,0.32797827,1956.1,1955.7,0.0011]
[1772598321147,0.501,1956.2,1955.7,4.51972215]
[1772598321651,1.77898826,1956.2,1955.7,4.51972215]
[1772598321948,2.1066762,1956.2,1955.7,3.24140749]
[1772598322645,0.32682539,1956.1,1955.7,0.0011]
[1772598323224,1.60487915,1956.1,1955.7,0.0011]
[1772598323838,0.501,1956.2,1955.8,3.24030749]
[1772598324152,0.32593939,1956.0,1955.5,0.0011]
[1772598324338,0.32504347,1955.7,1955.2,3.24030749]
[1772598324744,0.32504347,1955.7,1955.2,4.51893922]
[1772598325047,0.32504347,1956.0,1955.3,3.24030749]
[1772598325625,0.32421956,1955.8,1955.3,0.0011]
[1772598326445,0.32421956,1955.8,1955.3,3.24140749]
[1772598327042,0.32328548,1956.0,1955.3,3.24140749]
[1772598327243,1.6014149,1956.0,1955.3,3.24140749]
[1772598327954,0.32328548,1956.0,1955.4,1.27851079]
[1772598328254,0.32328548,1956.0,1955.5,3.24030749]
[1772598328502,0.001,1956.1,1955.5,3.24030749]
[1772598328821,0.001,1956.1,1955.6,3.24030749]
[1772598330126,0.001,1956.1,1955.8,3.24030749]
[1772598332127,0.001,1956.1,1955.9,1.27818395]
[1772598332748,0.001,1956.1,1955.9,4.51849144]
[1772598333898,0.001,1956.2,1956.0,3.24030749]
[1772598334041,0.001,1956.4,1956.0,3.24030749]
[1772598334248,0.001,1956.4,1956.2,3.24030749]
[1772598335989,0.001,1956.9,1956.2,3.24030749]
[1772598336173,0.002,1956.9,1956.3,1.2779226]
[1772598336345,0.002,1956.9,1956.4,3.24030749]
[1772598337267,0.001,1956.9,1956.4,3.24030749]
[1772598338371,0.001,1957.6,1956.6,3.24030749]
[1772598338571,0.001,1957.5,1956.8,3.24030749]
[1772598340177,0.001,1957.5,1956.9,4.51783827]
[1772598342154,0.001,1957.5,1956.8,5.11012315]
[1772598342358,0.001,1957.5,1957.0,3.24030749]
[1772598342559,0.30813721,1957.5,1956.8,1.27759607]
[1772598342773,0.30813721,1957.5,1956.8,4.51790356]
[1772598342979,0.30813721,1957.5,1956.9,3.24030749]
[1772598343174,0.001,1957.5,1956.9,3.24030749]
[1772598344481,0.001,1957.5,1957.0,1.2774655]
[1772598345993,0.001,1957.5,1957.0,4.51777299]
[1772598347385,0.001,1957.5,1957.1,3.24030749]
[1772598349186,0.30236035,1957.5,1956.8,1.27754964]
[1772598349385,0.30236035,1957.5,1956.8,4.49812001]
[1772598349688,0.001,1957.5,1956.9,3.22057037]
[1772598350675,0.001,1957.5,1956.9,7.09057037]
[1772598351014,0.001,1957.5,1957.0,3.22057037]
[1772598351174,0.001,1957.5,1957.2,3.22057037]
[1772598351381,0.001,1957.4,1957.2,3.22057037]
[1772598352588,0.001,1957.6,1957.3,3.22057037]
[1772598352792,0.001,1957.5,1957.1,6.1509706]
[1772598353294,0.001,1957.5,1957.3,1.2772697]
[1772598353586,0.001,1957.5,1957.3,4.49784007]
[1772598354090,0.001,1957.5,1957.4,3.22057037]
[1772598354262,0.001,1957.5,1957.3,1.2772697]
[1772598354263,0.29524484,1957.5,1957.2,1.27729454]
[1772598356505,0.29145947,1957.4,1957.1,1.653]
[1772598356792,0.29245947,1957.4,1956.9,3.87]
[1772598356973,0.29145947,1957.2,1956.8,1.655]
[1772598357164,0.29145947,1957.2,1956.8,2.93258587]
[1772598357693,0.29145947,1957.2,1956.8,1.655]
[1772598357893,1.80550842,1957.4,1956.6,1.27767958]
[1772598357894,0.29104957,1957.1,1956.6,1.27767958]
[1772598358087,0.29004957,1957.1,1956.5,2.93278584]
[1772598358282,0.28961927,1957.0,1956.5,2.93278584]
[1772598358532,0.28861927,1956.9,1956.5,1.655]
[1772598358692,0.28861927,1956.9,1956.5,2.93278257]
[1772598358997,0.28861927,1956.9,1956.5,2.93277768]
[1772598359369,0.28861927,1956.9,1956.5,1.655]
[1772598359574,0.28861927,1956.9,1956.5,2.9327919]
[1772598359873,0.001,1956.8,1956.5,2.93277086]
[1772598360069,0.28861927,1956.9,1956.0,0.0011]
[1772598360070,0.28718313,1956.5,1956.0,0.0011]
[1772598360275,0.21903329,1956.5,1956.0,4.49878316]
[1772598360495,1.49538932,1956.6,1956.0,4.49878316]
[1772598360692,0.21764295,1956.5,1956.0,1.27821279]
[1772598362988,0.21764295,1956.5,1956.0,4.49878316]
[1772598363186,0.21970478,1956.7,1956.1,3.22057037]
[1772598363388,0.21970478,1956.7,1956.5,0.0011]
[1772598364907,1.49737402,1956.7,1956.5,0.0011]
[1772598365204,0.21970478,1956.7,1956.5,0.0011]
[1772598366177,1.49290815,1957.0,1956.5,0.0011]
[1772598366500,1.49143538,1957.0,1956.5,0.0011]
[1772598366806,0.21393605,1957.0,1956.5,0.0011]
[1772598367412,1.27744405,1957.1,1956.5,3.22167037]
[1772598367582,1.48982678,1957.2,1956.5,3.22167037]
[1772598367904,0.21244782,1957.1,1956.5,3.22167037]
[1772598368879,0.5,1957.0,1956.6,1.27772666]
[1772598370607,0.70794472,1957.0,1956.6,1.27772666]
[1772598370900,0.20794472,1956.9,1956.5,0.0011]
[1772598372900,0.20794472,1956.9,1956.5,1.27889197]
[1772598374686,0.20185886,1956.8,1956.5,0.0011]
[1772598375317,0.20285886,1956.8,1956.5,0.0011]
[1772598377200,0.001,1956.8,1956.5,0.0011]
[1772598378621,0.001,1956.8,1956.5,3.18861341]
[1772598379514,0.001,1956.8,1956.6,1.27772666]
[1772598379715,0.40329308,1957.0,1956.7,3.18751341]
[1772598379914,0.19526811,1957.2,1956.7,3.18751341]
[1772598381193,1.47261248,1957.2,1956.7,3.18751341]
[1772598381617,0.19526811,1957.2,1956.6,1.27772666]
[1772598381821,0.19526811,1957.2,1956.6,3.14905485]
[1772598382918,0.19438545,1957.0,1956.5,1.27889197]
[1772598385091,0.19104871,1956.9,1956.5,0.0011]
[1772598385324,0.18942402,1956.8,1956.5,0.0011]
[1772598385727,0.18942402,1956.8,1956.3,3.8711]
[1772598385924,0.18942402,1956.6,1956.3,3.8711]
[1772598386098,0.18942402,1956.6,1956.1,0.0011]
[1772598386099,0.18942402,1956.4,1956.1,0.0011]
[1772598386418,0.18781661,1956.2,1955.9,0.0011]
[1772598387610,1.46580912,1956.2,1955.9,0.0011]
[1772598387812,0.18781661,1956.2,1955.9,0.0011]
[1772598391436,0.5,1956.1,1955.9,0.0011]
[1772598392423,0.5,1956.1,1955.7,0.0011]
[1772598392424,0.17775836,1956.0,1955.7,0.0011]
[1772598392608,1.48326678,1955.9,1955.5,1.664]
[1772598392813,1.48326678,1955.9,1955.4,1.27846202]
[1772598393039,0.17775836,1955.8,1955.4,1.27846202]
[1772598393223,0.17775836,1955.8,1955.3,4.4286936]
[1772598393901,1.45601235,1955.8,1955.3,4.4286936]
[1772598394101,1.45601235,1955.8,1955.2,5.11556502]
[1772598394102,1.30550842,1955.5,1955.2,0.0011]
[1772598394737,0.1744237,1955.6,1955.2,1.2797353]
[1772598394941,0.1744237,1955.6,1955.2,0.0011]
[1772598396323,1.45281923,1955.6,1955.2,0.0011]
[1772598396532,0.17102179,1955.5,1955.2,0.0011]
[1772598399335,0.17102179,1955.5,1955.0,0.0011]
[1772598399336,1.30550842,1955.3,1955.0,0.0011]
[1772598399536,1.47132369,1955.3,1955.0,0.0011]
[1772598400329,0.16581527,1955.3,1955.0,1.27987078]
[1772598400830,0.16581527,1955.3,1955.2,0.0011]
[1772598402237,0.16581527,1955.3,1955.0,0.0011]
[1772598402736,2.61201684,1956.0,1955.1,3.14905485]
[1772598402737,0.001,1956.0,1955.1,3.14905485]
[1772598402947,0.001,1956.0,1955.3,3.14905485]
[1772598403244,0.001,1956.0,1955.5,3.14905485]
[1772598405219,0.001,1956.0,1955.6,4.42743488]
[1772598405415,0.001,1956.0,1955.6,1.27838003]
[1772598405631,0.001,1956.0,1955.7,3.14905485]
[1772598407210,0.15452025,1956.0,1955.6,1.27838003]
[1772598407413,1.27912658,1956.0,1955.4,1.27846894]
[1772598407610,0.15174082,1955.8,1955.4,1.27846894]
[1772598408019,0.15274082,1956.0,1955.4,4.42752379]
[1772598408551,6.13862844,1957.4,1955.9,3.14905485]
[1772598408552,0.15085685,1956.8,1955.9,3.14905485]
[1772598408936,0.15085685,1956.7,1955.9,3.14905485]
[1772598409415,0.15085685,1956.7,1956.0,4.42717345]
[1772598409733,1.45592318,1956.6,1956.1,3.14905485]
[1772598410330,0.14862645,1956.5,1956.0,1.2781186]
[1772598411729,0.14683332,1956.3,1955.8,1.2782103]
[1772598411939,0.14683332,1956.1,1955.7,1.27827732]
[1772598412331,1.30550842,1956.2,1955.7,4.42733217]
[1772598412533,1.45054298,1956.2,1955.7,4.42843217]
[1772598412837,0.14503456,1956.1,1955.7,1.27937732]
[1772598413248,0.14323584,1956.3,1955.7,4.42843217]
[1772598414565,0.001,1956.4,1955.8,3.14905485]
[1772598416433,0.001,1956.4,1956.0,3.14905485]
[1772598417758,0.001,1956.9,1956.3,3.14905485]
[1772598418239,0.001,1956.9,1956.5,3.14905485]
[1772598420235,0.001,1956.9,1956.6,1.27772666]
[1772598420440,0.001,1956.9,1956.6,4.42678151]
[1772598421072,0.13156679,1956.9,1956.4,5.11135174]
[1772598421860,0.13156679,1956.9,1956.4,8.26040659]
[1772598424940,1.83074637,1956.7,1956.1,1.27803953]
[1772598425160,0.12327043,1956.6,1956.0,4.42711478]
[1772598426569,0.001,1956.8,1956.1,3.14905485]
[1772598426570,0.12065476,1956.8,1956.1,3.14905485]
[1772598429979,0.12065476,1956.8,1956.2,1.27798793]
[1772598430184,0.001,1956.8,1956.3,3.14905485]
[1772598432090,0.001,1956.8,1956.5,3.14905485]
[1772598434296,0.001,1956.8,1956.6,4.42678151]
[1772598437997,0.001,1956.8,1956.7,3.14905485]
[1772598438665,0.001,1956.8,1956.7,4.42671621]
[1772598440879,0.001,1956.8,1956.6,1.27769348]
[1772598445702,0.001,1956.8,1956.6,4.44417482]
[1772598446100,0.12423357,1956.8,1956.5,1.27884023]
[1772598446300,0.12423357,1956.8,1956.4,1.27894883]
[1772598448401,0.12423357,1956.8,1956.5,0.0011]
[1772598448895,0.001,1956.7,1956.5,0.0011]
[1772598449605,0.11522869,1956.7,1956.5,0.0011]
[1772598453277,0.10728816,1956.7,1956.5,0.0011]
[1772598454403,0.10728816,1956.7,1956.2,0.0011]
[1772598454404,0.10429409,1956.6,1956.2,0.0011]
[1772598454609,0.10429409,1956.6,1956.2,1.27908225]
[1772598455674,0.001,1956.7,1956.3,3.16648134]
[1772598456378,0.001,1956.9,1956.6,3.16648134]
[1772598458018,0.001,1956.9,1956.7,1.27766136]
[1772598459782,0.09647377,1956.9,1956.6,1.2776795]
[1772598462124,0.001,1956.9,1956.6,4.44416084]
[1772598462728,0.001,1956.9,1956.7,3.16648134]
[1772598466608,0.001,1956.9,1956.8,1.27759607]
[1772598468228,0.001,1956.9,1956.7,4.44409422]
[1772598469601,0.001,1956.9,1956.8,3.14910485]
[1772598470727,0.001,1956.9,1956.8,4.42670092]
[1772598471538,0.001,1956.9,1956.7,4.42671424]
[1772598472837,0.001,1956.8,1956.7,4.42671424]
[1772598474107,1.27823995,1957.4,1956.7,4.42671424]
[1772598474517,1.27823995,1957.4,1956.8,3.1830636]
[1772598475745,1.27820491,1957.4,1956.9,1.27753078]
[1772598476542,2.58455779,1957.4,1956.9,1.27753078]
[1772598478146,2.58455779,1957.4,1956.8,4.4606107]
[1772598478745,0.52255291,1957.2,1956.8,4.4606107]
[1772598479333,0.52255291,1957.2,1956.8,1.2775471]
[1772598479541,0.52255291,1957.2,1956.6,5.11187677]
[1772598479542,0.52255291,1957.2,1956.7,4.46069845]
[1772598480519,1.79989116,1957.2,1956.7,4.46069845]
[1772598481146,0.52255291,1957.2,1956.7,4.46069845]
[1772598484440,1.79989325,1957.2,1956.7,4.46069845]
[1772598484643,1.79988829,1957.2,1956.7,4.46069845]
[1772598484852,0.52255291,1957.2,1956.8,0.0011]
[1772598485053,0.001,1957.1,1956.8,0.0011]
[1772598486229,0.001,1957.1,1956.8,3.1841636]
[1772598486751,0.001,1957.1,1956.9,1.27753078]
[1772598486946,0.001,1957.1,1956.8,3.1841636]
[1772598487757,0.001,1957.1,1956.8,4.46170843]
[1772598488239,0.001,1957.1,1956.8,3.1841636]
[1772598489469,0.52255291,1957.0,1956.7,0.0011]
[1772598489671,0.52255291,1956.8,1956.4,1.27890817]
[1772598489980,0.52255291,1956.6,1956.3,0.0011]
[1772598490152,0.52255291,1956.6,1956.3,1.27902231]
[1772598490749,0.52255291,1956.6,1956.3,4.46208591]
[1772598491282,0.52255291,1956.8,1956.3,4.46208591]
[1772598493567,1.80015374,1956.8,1956.3,4.46208591]
[1772598493950,0.52255291,1956.4,1956.1,0.0011]
[1772598494182,0.52255291,1956.4,1956.1,4.46218515]
[1772598494369,0.52255291,1956.6,1956.2,3.1830636]
[1772598495974,0.52255291,1956.6,1956.2,4.46104447]
[1772598497879,0.52255291,1956.6,1956.2,4.46104366]
[1772598498878,0.52255291,1956.6,1956.3,0.0011]
[1772598499467,1.80028352,1956.6,1956.3,0.0011]
[1772598500387,1.80028352,1956.6,1956.2,0.0011]
[1772598501055,0.52255291,1956.6,1956.2,1.27908033]
[1772598501282,0.52255291,1956.6,1956.2,4.46214393]
[1772598501586,1.80029199,1956.6,1956.2,0.0011]
[1772598503572,1.80028003,1956.6,1956.2,0.0011]
[1772598503773,0.52255291,1956.6,1956.2,3.1841636]
[1772598504386,1.80028275,1956.6,1956.2,3.1841636]
[1772598504583,0.52255291,1956.6,1956.2,3.1841636]
[1772598504886,1.80028427,1956.6,1956.2,3.1841636]
[1772598507556,0.52255291,1956.4,1956.1,0.0011]
[1772598507762,0.52255291,1956.4,1956.0,3.1841636]
[1772598507957,1.80047045,1956.4,1956.0,3.1841636]
[1772598508499,3.57720184,1956.2,1955.8,2.93883111]
[1772598508788,1.80047045,1956.4,1955.7,2.93993111]
[1772598508789,3.57720184,1956.0,1955.7,2.93993111]
[1772598508967,3.57720184,1956.0,1955.7,0.0011]
[1772598509362,3.57720184,1956.0,1955.7,2.93993111]
[1772598509866,3.57720184,1956.2,1955.8,2.93883111]
[1772598510086,4.33263822,1956.2,1955.8,2.93883111]
[1772598511374,4.85519113,1956.2,1955.8,2.93993111]
[1772598511577,4.85519103,1956.2,1955.8,2.93993111]
[1772598511892,3.57720184,1956.2,1955.8,2.93993111]
[1772598512184,0.52255291,1956.0,1955.8,2.93993111]
[1772598512391,3.05464893,1956.1,1955.8,2.93993111]
[1772598513374,6.7555535,1956.4,1955.9,2.93883111]
[1772598513375,3.05464893,1956.3,1955.9,2.93883111]
[1772598513584,0.52255291,1956.4,1955.9,2.93883111]
[1772598513782,3.05564893,1956.5,1955.9,2.93883111]
[1772598514369,3.05564893,1956.5,1956.1,2.93883111]
[1772598515267,4.33344728,1956.5,1956.1,2.93883111]
[1772598515895,3.57720184,1956.4,1956.1,2.93883111]
[1772598516215,3.57720184,1956.4,1955.9,4.21697751]
[1772598517270,3.05464893,1956.3,1955.9,4.21697751]
[1772598519573,3.05464893,1956.3,1956.0,2.93883111]
[1772598520168,3.05464893,1956.1,1955.7,2.93993111]
[1772598520374,3.57720184,1956.0,1955.7,2.93993111]
[1772598521885,3.57720184,1956.0,1955.7,4.21824454]
[1772598522206,3.57720184,1956.0,1955.7,2.93993111]
[1772598522509,3.57720184,1956.0,1955.7,4.21824242]
[1772598523294,3.57720184,1956.0,1955.9,0.0011]
[1772598523604,3.05464893,1956.0,1955.7,4.21823841]
[1772598523775,3.05464893,1956.0,1955.8,0.0011]
[1772598527002,4.85619313,1956.2,1955.8,2.93993111]
[1772598527892,0.52355291,1956.2,1955.8,2.93993111]
[1772598528404,4.94669549,1956.2,1955.8,2.93993111]
[1772598530213,3.14514638,1955.9,1955.6,0.0011]
[1772598530507,3.66769929,1955.8,1955.5,3.18753948]
[1772598531410,3.14514638,1955.8,1955.5,4.46598263]
[1772598531897,5.31369929,1956.0,1955.6,3.18643948]
[1772598532099,4.79114638,1956.0,1955.6,3.18643948]
[1772598533111,3.14514638,1956.1,1955.6,3.18643948]
[1772598533305,5.31569929,1956.2,1955.8,3.18643948]
[1772598533482,2.17055291,1956.2,1955.8,3.18643948]
[1772598533888,3.14614638,1956.2,1955.8,3.18643948]
[1772598534085,4.42413896,1956.2,1955.8,3.18643948]
[1772598535809,0.001,1956.1,1955.8,3.18643948]
[1772598536007,3.14614638,1956.1,1955.8,3.18643948]
[1772598540423,0.001,1956.1,1955.9,3.18643948]
[1772598540735,0.001,1956.1,1955.9,4.46461957]
[1772598540940,0.001,1956.1,1956.0,3.18643948]
[1772598542694,0.001,1956.1,1955.9,4.46461957]
[1772598542895,0.001,1956.1,1955.9,3.18643948]
[1772598543225,0.001,1956.1,1955.9,4.46462131]
[1772598544194,0.001,1956.1,1956.0,3.18643948]
[1772598544401,6.76116818,1956.5,1956.0,3.18643948]
[1772598544402,0.001,1956.5,1956.0,3.18643948]
[1772598544605,1.27760529,1956.8,1956.0,3.18643948]
[1772598544806,5.11001811,1957.0,1956.2,3.18643948]
[1772598544807,3.14514638,1956.7,1956.2,3.18643948]
[1772598546838,3.14514638,1956.7,1956.4,3.18643948]
[1772598547151,3.14514638,1956.4,1955.8,3.18643948]
[1772598547448,3.14514638,1956.4,1956.1,0.0011]
[1772598547749,3.14514638,1956.4,1955.8,3.18643948]
[1772598547938,3.14514638,1956.4,1956.0,0.0011]
[1772598549258,3.14514638,1956.4,1956.0,3.18753948]
[1772598550129,3.14514638,1956.5,1956.0,3.18753948]
[1772598551046,4.42293992,1956.5,1956.0,4.46561278]
[1772598552230,4.42293992,1956.5,1956.1,3.18643948]
[1772598552630,3.14514638,1956.5,1956.1,3.18643948]
[1772598553664,3.14514638,1956.5,1956.1,4.46449188]
[1772598554175,4.42293954,1956.5,1956.1,3.18643948]
[1772598554369,3.14514638,1956.4,1956.1,3.18643948]
[1772598554673,3.14514638,1956.4,1956.0,0.0011]
[1772598554881,3.14514638,1956.4,1956.0,4.46565638]
[1772598555283,3.14514638,1956.4,1956.0,3.18753948]
[1772598555585,3.14514638,1956.4,1956.0,4.46565651]
[1772598556789,3.14614638,1956.6,1956.1,3.18643948]
[1772598557081,4.42387607,1956.6,1956.1,3.18643948]
[1772598557459,4.42387607,1956.6,1956.2,3.18643948]
[1772598560191,0.001,1956.5,1956.2,4.46441184]
[1772598560589,0.001,1956.5,1956.2,1.27797236]
[1772598560765,0.001,1956.5,1956.3,2.94324242]
[1772598563279,2.94523703,1956.5,1956.1,4.22234262]
[1772598563484,2.94523703,1956.5,1956.2,2.94324242]
[1772598565306,4.22303223,1956.5,1956.2,2.94324242]
[1772598565690,2.94423703,1956.4,1956.1,0.0011]
[1772598566524,0.78468415,1956.3,1955.8,0.0011]
[1772598566668,2.94423703,1956.0,1955.6,2.94434242]
[1772598566874,2.94423703,1956.2,1955.7,2.94324242]
[1772598570401,1.2787952,1956.5,1955.8,2.94324242]
[1772598570402,2.94423703,1956.4,1955.8,2.94324242]
[1772598572205,2.94423703,1956.4,1955.8,2.94434242]
[1772598572409,1.2779226,1956.3,1955.8,4.22256493]
[1772598572586,4.22215963,1956.3,1955.8,4.22256493]
[1772598572903,0.5,1956.2,1955.8,4.22256493]
[1772598573093,3.44423703,1956.2,1955.8,4.22256493]
[1772598573412,2.94423703,1956.2,1955.8,4.22256493]
[1772598575815,2.94423703,1956.2,1955.8,2.94434242]
[1772598576116,2.94423703,1956.1,1955.8,0.0011]
[1772598576495,2.94423703,1956.1,1955.7,0.0011]
[1772598576496,0.78468415,1956.1,1955.7,0.0011]
[1772598576699,2.94423703,1956.0,1955.5,4.22277049]
[1772598576926,2.94423703,1956.0,1955.6,2.94324242]
[1772598577327,4.22240386,1956.0,1955.6,2.94324242]
[1772598577636,1.27816683,1956.0,1955.6,2.94324242]
[1772598577799,2.94423703,1955.9,1955.6,2.94324242]
[1772598578642,2.94423703,1955.9,1955.5,2.94434242]
[1772598579329,4.22242302,1955.9,1955.5,2.94434242]
[1772598579624,2.94423703,1955.9,1955.5,4.22278396]
[1772598580299,2.94423703,1956.1,1955.6,2.94324242]
[1772598580500,4.22229109,1956.1,1955.6,2.94324242]
[1772598581531,4.22229109,1956.1,1955.6,4.22159611]
[1772598581731,4.22229109,1956.1,1955.7,2.94324242]
[1772598582534,4.22226554,1956.2,1955.7,2.94324242]
[1772598583337,0.5,1956.1,1955.7,2.94324242]
[1772598583948,1.77806321,1956.1,1955.7,2.94324242]
[1772598585147,0.5,1956.1,1955.7,1.2783046]
[1772598585450,0.5,1956.1,1955.8,2.94324242]
[1772598586452,3.44423703,1956.1,1955.8,2.94324242]
[1772598587054,2.94423703,1955.9,1955.5,2.94434242]
[1772598589361,4.22248165,1955.9,1955.5,2.94434242]
[1772598590463,2.98955492,1955.8,1955.5,2.94434242]
[1772598590766,2.98955492,1955.8,1955.5,0.0011]
[1772598591560,2.98955492,1955.8,1955.5,2.85813922]
[1772598591762,4.26780622,1955.8,1955.5,2.85813922]
[1772598592173,2.98955492,1955.8,1955.5,2.85813922]
[1772598593475,4.26780489,1955.8,1955.5,2.85813922]
[1772598594660,2.98955492,1955.7,1955.5,0.0011]
[1772598595598,4.26786958,1955.7,1955.6,0.0011]
[1772598595791,2.98955492,1955.6,1955.3,0.0011]
[1772598595971,2.98955492,1955.5,1955.0,2.85813922]
[1772598597491,4.26787352,1955.7,1955.1,2.85703922]
[1772598597666,1.27841022,1955.6,1955.1,4.13572844]
[1772598597863,2.98955492,1955.5,1955.1,2.85703922]
[1772598599600,1.80185194,1955.6,1955.0,0.0011]
[1772598599601,2.98955492,1955.3,1955.0,0.0011]
[1772598599793,4.268139,1955.3,1955.0,0.0011]
[1772598599998,3.51299664,1955.2,1954.8,0.8331778]
[1772598600166,3.51299664,1955.2,1954.8,0.0011]
[1772598601794,4.26826189,1955.1,1954.8,0.0011]
[1772598601968,4.26826189,1955.1,1954.5,0.0011]
[1772598601969,8.22397212,1955.0,1954.5,0.0011]
[1772598602169,3.51299664,1954.8,1954.5,0.0011]
[1772598602586,2.98955492,1954.8,1954.5,0.0011]
[1772598602801,2.98955492,1955.0,1954.6,0.91719063]
[1772598603594,2.98955492,1954.7,1954.5,0.0011]
[1772598603769,2.98955492,1954.5,1954.0,0.0011]
[1772598603969,2.98955492,1954.5,1953.6,2.19756561]
[1772598603970,3.51299664,1954.2,1953.6,2.19756561]
[1772598604169,2.98955492,1954.2,1953.6,2.19756561]
[1772598604377,2.98955492,1954.4,1953.7,0.91867879]
[1772598604597,3.46848097,1954.6,1953.7,0.91867879]
[1772598604895,2.98955492,1954.7,1953.9,0.91867879]
[1772598605096,2.98955492,1954.9,1954.1,0.91867879]
[1772598605297,3.51299664,1954.5,1953.9,1.715]
[1772598605796,3.51299664,1954.7,1954.0,1.27942681]
[1772598605990,2.98955492,1954.7,1954.1,0.91931847]
[1772598606594,2.98955492,1954.7,1954.0,1.27942681]
[1772598606792,2.98955492,1954.7,1954.1,0.91991868]
[1772598607499,2.98955492,1954.7,1954.1,0.92101868]